Workbook

Sheet 確認事項
A1: NO. | B1: 確認事項 | C1: 回答 | D1: CLOSE

Sheet 変更履歴
A1: MMO観測計画作成ツール 変更履歴
A2: 日付 | B2: Ver | C2: 変更者 | D2: 変更内容
A3: 2021-08-06 | B3: 1 | C3: 山下 | D3: -
A4: 2021-08-09 | B4: 2 | C4: arare | D4: コマンド出力のmain end部分を出力するように修正した ListにMSA_HV_ON_VFB1、MSA_HV_ON_VFB2追加 Obs_sequence XOR Time行追記 コマンドの開始終了時間をOBS時間に変更
A5: 2021-08-17 | B5: 3 | C5: arare | D5: WOLの時間をG列から取得するように変更
A6: 2021-08-25 | B6: 4 | C6: arare | D6: COMMENTにmainstart,endのXDOR,XOR用追記
A7: 2021-09-27 | B7: 5 | C7: arare | D7: ＃refの対応 obserbation Aから昇順につける
A8: 2021-10-19 | B8: 6 | C8: arare | D8: ListにMSAHV追記
A9: 2021-10-21 | B9: 7 | C9: arare | D9: Listを最新にした

Sheet 実行
F8: 【操作】
A9: C番号 | B9: 987 | F9: 「実行」シートの「観測作成」を押下。
A10: M番号 | B10: 631202 | F10: →「START」、「LOOP」、「END」を「obs_sequence」に貼り付けます。
F11: 「実行」シートの「時刻反映」を押下。
F12: →WOLの時間と関数エラーとなっているセルを修正します。
F13: 【注意点】
F14: 「START」、「LOOP」、「END」の"cmd count"からシート内に何行あるかを取得しているので、ここは空白がないように"0”を入力してください。
F15: もし空白があった場合、コピー範囲が小さくなってしまいます。
F16: ”WOL”シートの4行目以下は、実施するWOLのみを記載すること。 (4行目以下に、期間開始日時と終了日時の記載は不要です。)

Sheet チェック表 (hidden)
B2: コマンド作成時注意項目
B3: NO. | C3: 項目 | D3: チェック
B4: 1 | C4: 観測期間開始時に「dcsm-EF_BUS_MONI_ON」手順が入っていることを確認する。 ただし、前回の観測終了時に「dcsm-EF_BUS_MONI_OFF」を実行していない場合は確認不要。 | D4: □
B5: 2 | C5: 観測期間開始日に、観測する機器の”ON”手順が入っていることを確認する。 ただし、PWI、MGF、MAST、WPTを"ON"にする場合は、PWI、MGF、MAST、WPTよりも先にPMEが"ON"となっていること。 ※クルーズ観測中は、MEA1,HEPE,MGFのみ”ON” | D5: □
B6: 3 | C6: TLM MODEが観測前に「５」 観測終了後は「１０」 となっていることを確認する | D6: □
B7: 4 | C7: 観測時間が”86400”を超えるていないか確認する。 超えていた場合は、main計画作成時に途中ダミーコマンドを挿入すること
B8: 5 | C8: WOLの開始時刻が正しいことを確認する | D8: □
B9: 6 | C9: WOLの時間を確認 HV OFFになっていることを確認する ↓ クルーズ観測を行っている機器(HEPE、ENA、MIA、MEA、MSAのみ) フライバイを行っている機器(MSA,PWI,MGF,MEA,ENA,MIA,HEPE,MDM) | D9: □
B10: 7 | C10: WOL終了時刻＋10以降にのHVがONになっていることを確認する。 クルーズ観測を行っている機器(HEPE、ENA、MIA、MEA、MSAのみ) フライバイを行っている機器(MSA,PWI,MGF,MEA,ENA,MIA,HEPE,MDM) | D10: □
B11: 8 | C11: 観測期間最終日に、観測を行った機器の”OFF”手順が入っていることを確認する。 ただし、PWI,MGF,MAST,WPT-OFF手順の後にPME-OFF手順が入っていることを確認する。 | D11: □
B12: 9 | C12: MDP_POWEROFFのあとにdcsm-MC_ENA_MDPが入っていることを確認する。 | D12: □
B13: 10 | C13: CELのMONI ONは長時間(1h以上の場合は、山下さんと要相談)しないこと BUSにはCELのみのもあるので注意 dcsm-BUS_CEL_MONI_ON dcsm-BUS_CEL_MONI_OFF | D13: □
B14: 11 | C14: MEA1の SCAN ON は dcsm-EF_MEA1_ON_SW.cpsに入っているので 順番は MDP ONして dcsm-EF_MEA1_ON_SW.cps dcsm-EF_MEA1_HV_ON.cps dcsm-EF_MEA1_HV_OFF.cps dcsm-EF_MEA1_HV_ON.cps dcsm-EF_MEA1_HV_SCAN_OFF.cps dcsm-EF_MEA1_OFF.cps MDP OFF dcsm-EF_MEA_ON_SW.cps dcsm-EF_MEA_HV_ON.cps dcsm-EF_MEA_HV_OFF.cps dcsm-EF_MEA_HV_ON.cps dcsm-EF_MEA_HV_SCAN_OFF.cps dcsm-EF_MEA_OFF.cps になる SCAN OFFにすると データが出てこない HV OFF->ON時は注意する | D14: □
B15: 13 | C15: 2021/6/25以降 dcsm-EF_MSA_ON_C が最新 dcsm-EF_MSA_ONは使用しない | D15: □
B16: 14 | C16: 2021/6/25以降 dcsm-CRCO_MIA_CHECK_C が最新 dcsm-CRCO_MIA_CHECKは使用しない（クルーズチェックアウトの時） | D16: □
B17: 15 | C17: 2021/6/25以降 dcsm-CRCO_MSA_CHECK_C が最新 dcsm-CRCO_MSA_CHECKは使用しない（クルーズチェックアウトの時） | D17: □
B18: 16 | C18: フライバイ時、MIAのHV_ON時間帯によって違うので必ず確認する MIA_HV_ON_RC MIA_HV_ON_SW_RC MIA_HV_ON_MAG_RC | D18: □
B19: 17 | C19: Excelの時間を確認する 時間通りになっているか | D19: □

Sheet START
A1: Start | B1: End | C1: Start | D1: End | E1: Event | F1: Activity | G1: Procedure | H1: Duration (sec) | L1: cmd count | N1: cmd count
C2: =#REF! ->  | D2: =C2+H2/3600/24 ->  | F2: SI Power ON | G2: MEA1_ON_SETUP_SW | H2: =VLOOKUP(G2,List!B:C,2,0) -> 292 | K2: =VLOOKUP(G2,List!B:E,4,0) -> dcsm-EF_MEA1_ON_SW | L2: =VLOOKUP(G2,List!B:G,6,0) -> 12 | M2: =C2-317/3600/24 ->  | N2: =+"0000 CALL "&K2&" -Run" -> 0000 CALL dcsm-EF_MEA1_ON_SW -Run | P2: CALL | Q2: dcsm-EF_BUS_MONI_ON | U2: =+IF(Q2=K2,"","x") -> x
C3: =D2 ->  | D3: =C3+H3/3600/24 ->  | G3: HEP_ON_SETUP | H3: =VLOOKUP(G3,List!B:C,2,0) -> 1230 | K3: =VLOOKUP(G3,List!B:E,4,0) -> dcsm-EF_HEP_ON_START_for_TL | L3: =VLOOKUP(G3,List!B:G,6,0) -> 34 | N3: 0000 CALL dcsm-EF_HEP_ON_START_for_TL -Run | P3: CALL | Q3: dcsm-EF_MDP_ON | U3: =+IF(Q3=K3,"","x") -> x
C4: =D3 ->  | D4: =C4+H4/3600/24 ->  | G4: PME_ON | H4: =VLOOKUP(G4,List!B:C,2,0) -> 80 | K4: =VLOOKUP(G4,List!B:E,4,0) -> dcsm-EF_PME_ON | L4: =VLOOKUP(G4,List!B:G,6,0) -> 2 | N4: 0000 CALL dcsm-EF_PME_ON -Run
G5: MGF_ON_SETUP | H5: =VLOOKUP(G5,List!B:C,2,0) -> 14 | K5: =VLOOKUP(G5,List!B:E,4,0) -> dcsm-EF_MGF_ON | L5: =VLOOKUP(G5,List!B:G,6,0) -> 3 | N5: 0000 CALL dcsm-EF_MGF_ON -Run
D6: =C6+H6/3600/24 ->  | G6: MIA_ON_SETUP | H6: =VLOOKUP(G6,List!B:C,2,0) -> 382 | K6: =VLOOKUP(G6,List!B:E,4,0) -> dcsm-EF_MIA_ON | L6: =VLOOKUP(G6,List!B:G,6,0) -> 6 | N6: 0000 CALL dcsm-EF_MIA_ON -Run

Sheet END
A1: Start | B1: End | C1: Start | D1: End | E1: Event | F1: Activity | G1: Procedure | H1: Duration (sec) | L1: cmd count | N1: cmd count
C2: =D2-H2/3600/24 ->  | D2: =C3 ->  | F2: SI Power ON | G2: HEP_OFF | H2: =VLOOKUP(G2,List!B:C,2,0) -> 70 | K2: =VLOOKUP(G2,List!B:E,4,0) -> dcsm-EF_HEPE_OFF_STOP | L2: =VLOOKUP(G2,List!B:G,6,0) -> 4 | M2: =C2-317/3600/24 ->  | N2: =+"0000 CALL "&K2&" -Run" -> 0000 CALL dcsm-EF_HEPE_OFF_STOP -Run | P2: CALL | Q2: dcsm-EF_HEPE_OFF_STOP | U2: =+IF(Q2=K2,"","x") -> 
D3: =C4 ->  | G3: MEA1_OFF | H3: =VLOOKUP(G3,List!B:C,2,0) -> 160 | K3: =VLOOKUP(G3,List!B:E,4,0) -> dcsm-EF_MEA1_OFF | L3: =VLOOKUP(G3,List!B:G,6,0) -> 4 | N3: =+"0000 CALL "&K3&" -Run" -> 0000 CALL dcsm-EF_MEA1_OFF -Run | P3: CALL | Q3: dcsm-EF_MEA1_OFF
G4: MGF_OFF | H4: =VLOOKUP(G4,List!B:C,2,0) -> 8 | K4: =VLOOKUP(G4,List!B:E,4,0) -> dcsm-EF_MGF_OFF | L4: =VLOOKUP(G4,List!B:G,6,0) -> 1 | N4: 0000 CALL dcsm-EF_MGF_OFF -Run | P4: CALL | Q4: dcsm-EF_MGF_OFF
G5: PME_OFF | H5: =VLOOKUP(G5,List!B:C,2,0) -> 40 | K5: =VLOOKUP(G5,List!B:E,4,0) -> dcsm-EF_PME_OFF | L5: =VLOOKUP(G5,List!B:G,6,0) -> 1 | N5: 0000 CALL dcsm-EF_PME_OFF -Run | P5: CALL | Q5: dcsm-EF_PME_OFF
D6: =C7 ->  | G6: MIA_OFF | H6: =VLOOKUP(G6,List!B:C,2,0) -> 160 | K6: =VLOOKUP(G6,List!B:E,4,0) -> dcsm-EF_MIA_OFF | L6: =VLOOKUP(G6,List!B:G,6,0) -> 4 | N6: 0000 CALL dcsm-EF_MIA_OFF -Run | P6: CALL | Q6: dcsm-EF_MDP_POWEROFF | U6: x
C7: =D7-H7/3600/24 ->  | D7: =C8 ->  | G7: MSA_OFF | H7: =VLOOKUP(G7,List!B:C,2,0) -> 380 | K7: =VLOOKUP(G7,List!B:E,4,0) -> dcsm-EF_MSA_OFF | L7: =VLOOKUP(G7,List!B:G,6,0) -> 25 | M7: =C7-317/3600/24 ->  | N7: 0000 CALL dcsm-EF_MSA_OFF -Run
D8: =C9 ->  | F8: MDP OFF | G8: MDP_OFF_D | H8: =VLOOKUP(G8,List!B:C,2,0) -> 120 | K8: =VLOOKUP(G8,List!B:E,4,0) -> dcsm-EF_MDP_POWEROFF | L8: =VLOOKUP(G8,List!B:G,6,0) -> 3 | N8: 0000 CALL dcsm-EF_MDP_POWEROFF -Run | U8: =+IF(#REF!=K8,"","x") -> 
C9: =#REF! ->  | D9: =C9+H9/3600/24 ->  | E9: =#REF! ->  | G9: END | H9: 1200 | K9: =VLOOKUP(G9,List!B:E,4,0) ->  | L9: =VLOOKUP(G9,List!B:G,6,0) -> 

Sheet LOOP
A1: Start | B1: End | C1: Start | D1: End | E1: Event | F1: Activity | G1: Procedure | H1: Duration (sec) | L1: cmd count | N1: cmd count
C2: =#REF! ->  | D2: =C2+H2/3600/24 ->  | F2: SI HV ON | G2: HEP_HV_ON | H2: =VLOOKUP(G2,List!B:C,2,0) -> 270 | K2: =VLOOKUP(G2,List!B:E,4,0) -> dcsm-EF_HEPE_HV_ON_OBS_START | L2: =VLOOKUP(G2,List!B:G,6,0) -> 6 | M2: =C2-317/3600/24 ->  | N2: =+"0000 CALL "&K2&" -Run" -> 0000 CALL dcsm-EF_HEPE_HV_ON_OBS_START -Run | P2: CALL | Q2: dcsm-EF_MEA1_HV_ON | U2: =+IF(Q2=K2,"","x") -> x
C3: =D2 ->  | G3: MIA_HV_ON_SW_RC | H3: =VLOOKUP(G3,List!B:C,2,0) -> 262 | K3: =VLOOKUP(G3,List!B:E,4,0) -> dcsm-EF_MIA_HV_ON_SW_RC | L3: =VLOOKUP(G3,List!B:G,6,0) -> 7 | N3: =+"0000 CALL "&K3&" -Run" -> 0000 CALL dcsm-EF_MIA_HV_ON_SW_RC -Run | P3: CALL | Q3: dcsm-EF_HEPE_HV_ON_OBS_START | U3: x
C4: =D3 ->  | D4: =C4+H4/3600/24 ->  | G4: MEA1_HV_ON | H4: =VLOOKUP(G4,List!B:C,2,0) -> 1702 | K4: =VLOOKUP(G4,List!B:E,4,0) -> dcsm-EF_MEA1_HV_ON | L4: =VLOOKUP(G4,List!B:G,6,0) -> 27 | M4: =C4-317/3600/24 ->  | N4: =+"0000 CALL "&K4&" -Run" -> 0000 CALL dcsm-EF_MEA1_HV_ON -Run | P4: CALL | Q4: dcsm-EF_HEPE_HV_ON_OBS_START | U4: =+IF(Q4=K4,"","x") -> x
G5: MSA_HV_ON_1_MFB_SF | H5: =VLOOKUP(G5,List!B:C,2,0) -> 1573 | K5: =VLOOKUP(G5,List!B:E,4,0) -> dcsm-EF_MSA_HV_ON_1_MFB_Safe | L5: =VLOOKUP(G5,List!B:G,6,0) -> 108 | N5: 0000 CALL dcsm-EF_MSA_HV_ON_1_MFB_Safe -Run | P5: CALL | Q5: dcsm-EF_HEPE_HV_ON_OBS_START | U5: x
C6: =D5 ->  | D6: =C6+H6/3600/24 ->  | G6: MSA_HV_ON_2_MFB_SF | H6: =VLOOKUP(G6,List!B:C,2,0) -> 1860 | K6: =VLOOKUP(G6,List!B:E,4,0) -> dcsm-EF_MSA_HV_ON_2_MFB_Safe | L6: =VLOOKUP(G6,List!B:G,6,0) -> 124 | M6: =C6-317/3600/24 ->  | N6: =+"0000 CALL "&K6&" -Run" -> 0000 CALL dcsm-EF_MSA_HV_ON_2_MFB_Safe -Run | P6: CALL | Q6: dcsm-EF_HEPE_HV_ON_OBS_START | U6: =+IF(Q6=K6,"","x") -> x
F7: TLM mode change (MODE_5) | G7: TLM_MODE_5 | H7: =VLOOKUP(G7,List!B:C,2,0) -> 42 | K7: =VLOOKUP(G7,List!B:E,4,0) -> dcsm-EF_BUS_TLM_MODE_5 | L7: =VLOOKUP(G7,List!B:G,6,0) -> 2 | N7: 0000 CALL dcsm-EF_BUS_TLM_MODE_5 -Run | P7: CALL | Q7: dcsm-EF_BUS_TLM_MODE_5
D8: =C9 ->  | E8: Observation E | H8: =(D8-C8)*3600*24 ->  | I8: =H8/3600 ->  | L8: 0 | N8: ="0000 WAIT_SEC "&TEXT(H8,"#0") ->  | P8: WAIT_SEC | Q8: 26900 | U8: x
C9: =D9-H9/3600/24 ->  | D9: =C10 ->  | F9: TLM mode change (MODE_10) | G9: TLM_MODE_10 | H9: =VLOOKUP(G9,List!B:C,2,0) -> 42 | K9: =VLOOKUP(G9,List!B:E,4,0) -> dcsm-EF_BUS_TLM_MODE_10 | L9: =VLOOKUP(G9,List!B:G,6,0) -> 2 | N9: =+"0000 CALL "&K9&" -Run" -> 0000 CALL dcsm-EF_BUS_TLM_MODE_10 -Run | P9: CALL | Q9: dcsm-EF_BUS_TLM_MODE_10
C10: =D10-H10/3600/24 ->  | D10: =C11 ->  | F10: SI HV OFF | G10: MSA_HV_OFF_VFB | H10: =VLOOKUP(G10,List!B:C,2,0) -> 774 | K10: =VLOOKUP(G10,List!B:E,4,0) -> dcsm-EF_MSA_HV_OFF_VFB | L10: =VLOOKUP(G10,List!B:G,6,0) -> 25 | M10: =C10-317/3600/24 ->  | N10: =+"0000 CALL "&K10&" -Run" -> 0000 CALL dcsm-EF_MSA_HV_OFF_VFB -Run | P10: CALL | Q10: dcsm-EF_HEPE_HV_OFF_OBS_OFF | U10: =+IF(Q10=K10,"","x") -> x
G11: MEA1_HV_OFF | H11: =VLOOKUP(G11,List!B:C,2,0) -> 182 | K11: =VLOOKUP(G11,List!B:E,4,0) -> dcsm-EF_MEA1_HV_OFF | L11: =VLOOKUP(G11,List!B:G,6,0) -> 10 | N11: 0000 CALL dcsm-EF_MEA1_HV_OFF -Run | P11: CALL | Q11: dcsm-EF_HEPE_HV_OFF_OBS_OFF | U11: x
C12: =D12-H12/3600/24 ->  | G12: MIA_HV_OFF | H12: =VLOOKUP(G12,List!B:C,2,0) -> 60 | K12: =VLOOKUP(G12,List!B:E,4,0) -> dcsm-EF_MIA_HV_OFF | L12: =VLOOKUP(G12,List!B:G,6,0) -> 1 | N12: 0000 CALL dcsm-EF_MIA_HV_OFF -Run | P12: CALL | Q12: dcsm-EF_HEPE_HV_OFF_OBS_OFF | U12: x
C13: =D13-H13/3600/24 ->  | G13: HEP_HV_OFF | H13: =VLOOKUP(G13,List!B:C,2,0) -> 190 | K13: =VLOOKUP(G13,List!B:E,4,0) -> dcsm-EF_HEPE_HV_OFF_OBS_OFF | L13: =VLOOKUP(G13,List!B:G,6,0) -> 5 | N13: 0000 CALL dcsm-EF_HEPE_HV_OFF_OBS_OFF -Run | P13: CALL | Q13: dcsm-EF_MEA1_HV_OFF | U13: x
C14: =#REF! ->  | D14: =C14+H14/3600/24 ->  | E14: WOL | G14: =(#REF!-D13)*24*3600 ->  | H14: 1200 | K14: =VLOOKUP(G14,#REF!,4,0) ->  | L14: 0 | N14: ="0000 WAIT_SEC "&TEXT(G14,"#0") ->  | P14: WAIT_SEC | Q14: 1800

Sheet COMMENT
A1: activity | B1: Comment
A2: main_start | B2: #!HEAD: main2-CROUSE_OBS6_XDOR_001_M63 2021-07-01 01:18:36 478 45 MMO MAIN2 // OBS-sequence 0001 . # LET @ONERR=NEXT 0002 . # ========================================================================== 0003 # <startTime>2022-03-11T10:45:00Z</startTime> 0004 # <stopTime>2022-03-15T06:00:00Z</stopTime> 0005 # << XDOR:XDOR_BJXR_C%%%_CRCO_M&&&&&&_00001.BC >> 連続送信***** 0006 # << XOR:XOR__BJXR_C%%%_CRCO_M&&&&&&_00001.BC >> ***** 0007 # ========================================================================== 0008 # ========================================================================== 0009 . # EXEC_AT 2022-03-11 10:45:00 0010 # ◆◇◆◇◆◇◆◇◆◇◆◇◆◇◆◇◆◇◆◇◆◇◆◇◆◇◆◇◆◇◆◇◆◇◆◇◆
A3: main_end | B3: 0291 #############################################################################
A4: OBS | B4: 0068 # ========================================================================== 0069 # @@. Observation \\ 0070 # ========================================================================== 0071 #
A5: WOL | B5: 0217 # ========================================================================== 0218 # @@. WOL # $$ 0219 # ========================================================================== 0220 #
A6: BUS_ON | B6: 0016 # ========================================================================== 0017 # @@. BUS ON 0018 # ========================================================================== 0019 #
A7: MDP ON | B7: 0020 # ========================================================================== 0021 # @@. MDP ON 0022 # ========================================================================== 0023 #
A8: SI Check
A9: MDP OFF | B9: 0274 # ========================================================================== 0275 # @@. MDP OFF 0276 # ========================================================================== 0277 #
A10: BUS OFF | B10: 0285 # ========================================================================== 0286 # @@. BUS MONI OFF 0287 # ========================================================================== 0288 #
A11: SI Power ON | B11: 0034 # ========================================================================== 0035 # @@. PI POWER ON 0036 # ========================================================================== 0037 #
A12: SI HV ON | B12: 0049 # ========================================================================== 0050 # @@. PI HV ON 0051 # ========================================================================== 0052 #
A13: TLM mode change (MODE_5) | B13: 0059 # ========================================================================== 0060 # @@. TLM MODE 5 (Mission: 7kbps, without user HK) 0061 # ========================================================================== 0062 #
A14: TLM mode change (MODE_10) | B14: 0028 # ========================================================================== 0029 # @@. TLM MODE 10 (Mission: 4kbps, with user HK) 0030 # ========================================================================== 0031 #
A15: SI HV OFF | B15: 0207 # ========================================================================== 0208 # @@. PI HV OFF 0209 # ========================================================================== 0210 #
A16: SI Power OFF | B16: 0259 # ========================================================================== 0260 # @@. PI Power OFF 0261 # ========================================================================== 0262 #
A17: MSA SOFT RESET
A18: MACRO COMMAND ENA | B18: 0280 # ========================================================================== 0281 # @@. MACRO ENA 0282 # ========================================================================== 0283 #
A19: CrouseCheckOut
A21: main_start(XDOR) | B21: #!HEAD: main2-CROUSE_OBS6_XDOR_001_M63 2021-07-01 01:18:36 478 45 MMO MAIN2 // Earth Fly-by 0001 . # LET @ONERR=NEXT 0002 . # ========================================================================== 0003 # <startTime>2021-07-06T08:00:00Z</startTime> 0004 # <stopTime>2021-07-15T10:00:00Z</stopTime> 0005 # << XDOR:XDOR_BJXR_C%%%_CRCO_M&&&&&&_00001.BC >> 連続送信***** 0006 # << XOR:XOR__BJXR_C%%%_CRCO_M&&&&&&_00001.BC >> ***** 0007 # ========================================================================== 0008 # ========================================================================== 0009 . # EXEC_AT 2021-07-06 08:00:00 0010 # ◆◇◆◇◆◇◆◇◆◇◆◇◆◇◆◇◆◇◆◇◆◇◆◇◆◇◆◇◆◇◆◇◆◇◆◇◆ 0015 # ========================================================================== 0016 # 0. MMO MOSIF Heater & Switch to Standby Mode 0017 # ========================================================================== 0018 # 0019 # Change MOSIF Heater Setting (14sec) 0020 # <forMPO>AJXF017A</forMPO> 0021 WAIT_SEC 42586 0022 # 0023 # MMO Switch to Standby Mode (main) (300sec) 0024 # <forMPO>AJXF001A</forMPO> 0025 WAIT_SEC 60 0026 # 0027 # MMO Set HK rate to 64 second (3sec) 0028 # <forMPO>AJXF005A</forMPO> 0029 WAIT_SEC 237 0030 #
A22: main_start(XOR) | B22: #!HEAD: main2-CROUSE_OBS6_XDOR_001_M63 2021-07-01 01:18:36 478 45 MMO MAIN2 // Earth Fly-by 0001 . # LET @ONERR=NEXT 0002 . # ========================================================================== 0003 # <startTime>2021-07-06T08:00:00Z</startTime> 0004 # <stopTime>2021-07-15T10:00:00Z</stopTime> 0005 # << XDOR:XDOR_BJXR_C%%%_CRCO_M&&&&&&_00001.BC >> 連続送信***** 0006 # << XOR:XOR__BJXR_C%%%_CRCO_M&&&&&&_00001.BC >> ***** 0007 # ========================================================================== 0008 # ========================================================================== 0009 . # EXEC_AT 2021-07-06 08:00:00 0010 # ◆◇◆◇◆◇◆◇◆◇◆◇◆◇◆◇◆◇◆◇◆◇◆◇◆◇◆◇◆◇◆◇◆◇◆◇◆ 0015 # ========================================================================== 0016 # 0. MMO MOSIF Heater & Switch to Standby Mode 0017 # ========================================================================== 0018 # 0019 # Change MOSIF Heater Setting (14sec) 0020 # <forMPO>AJXF017A</forMPO> 0021 WAIT_SEC 42600 0022 # 0023 # MMO Switch to Standby Mode (main) (300sec) 0024 # <forMPO>AJXF001A</forMPO> 0025 WAIT_SEC 360 0026 # 0027 # MMO Set HK rate to 64 second (3sec) 0028 # <forMPO>AJXF005A</forMPO> 0029 WAIT_SEC 240 0030 #
A23: main_end(XDOR) | B23: 0122 # ========================================================================== 0123 # 99. MMO Dormant Mode 0124 # ========================================================================== 0125 WAIT_SEC 240 0126 # 0127 # MMO Set HK rate to 1 second (3sec) 0128 # <forMPO>AJXF004A</forMPO> 0129 WAIT_SEC 117 0130 # 0131 # MMO Switch to Dormant Mode (70sec) 0132 # <forMPO>AJXF002A</forMPO> 0133 WAIT_SEC 230 0134 # 0135 # Return MOSIF heater setting (14sec) 0136 # <forMPO>AJXF017B</forMPO> 0291 #############################################################################
A24: main_end(XOR) | B24: 0122 # ========================================================================== 0123 # 99. MMO Dormant Mode 0124 # ========================================================================== 0125 WAIT_SEC 240 0126 # 0127 # MMO Set HK rate to 1 second (3sec) 0128 # <forMPO>AJXF004A</forMPO> 0129 WAIT_SEC 120 0130 # 0131 # MMO Switch to Dormant Mode (70sec) 0132 # <forMPO>AJXF002A</forMPO> 0133 WAIT_SEC 300 0134 # 0135 # Return MOSIF heater setting (14sec) 0136 # <forMPO>AJXF017B</forMPO> 0291 #############################################################################

Sheet List
C1: Duration (sec) | D1: source filename | E1: filename | G1: cmdcount
A2: BUS | B2: BUS_CEL_MONI_OFF | C2: 40 | E2: dcsm-BUS_CEL_MONI_OFF | G2: 1
B3: BUS_CEL_MONI_ON | C3: 40 | E3: dcsm-BUS_CEL_MONI_ON | G3: 1
B4: BUS_CHG_BEFORE_CHK | C4: 0 | E4: dcsm-BUS_CHG_BEFORE_CHK | G4: 0
B5: BUS_CHG_EMERGENCY_OFF | C5: 86 | E5: dcsm-BUS_CHG_Emergency_OFF | G5: 5
B6: BUS_CHG_SET | C6: 298 | E6: dcsm-BUS_CHG_SET | G6: 14
B7: BUS_CHG_START | C7: 82 | E7: dcsm-BUS_CHG_START | G7: 2
B8: BUS_CHG_STOP_BAT-EXT | C8: 160 | E8: dcsm-BUS_CHG_STOP_BAT-EXT | G8: 4
B9: BUS_MMO_OFF | C9: 140 | E9: dcsm-BUS_MMO_OFF | G9: 1
B10: BUS_MMO_ON | C10: 80 | E10: dcsm-BUS_MMO_ON | G10: 2
A11: CRCO | B11: CRCO_BUS_MONI_ON | C11: 310 | E11: dcsm-CRCO_BUS_MONI_ON | G11: 10
B12: CRCO_CEL_MONI_OFF | C12: 40 | E12: dcsm-CRCO_CEL_MONI_OFF | G12: 1
B13: CRCO_ENA | C13: 1134 | E13: dcsm-CRCO_ENA_CHECK | G13: 18
B14: CRCO_HEPE | C14: 2206 | E14: dcsm-CRCO_HEPE_CHECK | G14: 36
B15: CRCO_HEPI | C15: 2730 | E15: dcsm-CRCO_HEPI_CHECK | G15: 48
B16: CRCO_MASTWPT | C16: 1848 | E16: dcsm-CRCO_MASTWPT_CHECK | G16: 41
B17: CRCO_MDM | C17: 2332 | E17: dcsm-CRCO_MDM_CHECK | G17: 45
B18: CRCO_MDP_OFF | C18: 120 | E18: dcsm-CRCO_MDP_OFF | G18: 4
B19: CRCO_MDP_ON | C19: 509 | E19: dcsm-CRCO_MDP_ON | G19: 12
B20: CRCO_MEA | C20: 4620 | E20: dcsm-CRCO_MEA_CHECK | G20: 52
B21: CRCO_MGF | C21: 3969 | E21: dcsm-CRCO_MGF_CHECK | G21: 49
B22: CRCO_MIA_C | C22: 1892 | E22: dcsm-CRCO_MIA_CHECK_C | G22: 20
B23: CRCO_MSASI | C23: 6688 | E23: dcsm-CRCO_MSASI_CHECK | G23: 23
B24: CRCO_MSA_C | C24: 1102 | E24: dcsm-CRCO_MSA_CHECK_C | G24: 19
B25: CRCO_PME_OFF | C25: 120 | E25: dcsm-CRCO_PME_OFF | G25: 5
B26: CRCO_PME_ON | C26: 160 | E26: dcsm-CRCO_PME_ON | G26: 5
B27: CRCO_PWI | C27: 2448 | E27: dcsm-CRCO_PWI_CHECK | G27: 51
B28: CRCO_SI_READY | C28: 377 | E28: dcsm-CRCO_SI_READY | G28: 17
A29: BUS | B29: BUS_OFF_D | C29: 220 | E29: dcsm-EF_BUS_MONI_OFF | G29: 5
B30: BUS_SETUP_D | C30: 577 | E30: dcsm-EF_BUS_MONI_ON | G30: 20
B31: TLM_MODE_10 | C31: 42 | E31: dcsm-EF_BUS_TLM_MODE_10 | G31: 2
B32: TLM_MODE_5 | C32: 42 | E32: dcsm-EF_BUS_TLM_MODE_5 | G32: 2
B33: TLM_MODE_7 | C33: 2 | E33: dcsm-EF_BUS_TLM_MODE_7 | G33: 1
A34: ENA | B34: ENA_HV_OFF | C34: 198 | E34: dcsm-EF_ENA_HV_OFF | G34: 4
B35: ENA_HV_ON | C35: 344 | E35: dcsm-EF_ENA_HV_ON | G35: 18
B36: ENA_HV_ON_H | C36: 344 | E36: dcsm-EF_ENA_HV_ON_H | G36: 18
B37: ENA_OFF | C37: 88 | E37: dcsm-EF_ENA_power_OFF | G37: 4
B38: ENA_ON_SETUP | C38: 564 | E38: dcsm-EF_ENA_power_ON | G38: 7
A39: HEP | B39: HEP_HV_OFF | C39: 190 | E39: dcsm-EF_HEPE_HV_OFF_OBS_OFF | G39: 5
B40: HEP_HV_ON | C40: 270 | E40: dcsm-EF_HEPE_HV_ON_OBS_START | G40: 6
B41: HEP_OFF | C41: 70 | E41: dcsm-EF_HEPE_OFF_STOP | G41: 4
B42: HEP_ON_SETUP | C42: 1230 | E42: dcsm-EF_HEP_ON_START_for_TL | G42: 34
A43: MDM | B43: MDM_OFF | C43: 160 | E43: dcsm-EF_MDM_OFF | G43: 4
B44: MDM_ON_SETUP | C44: 202 | E44: dcsm-EF_MDM_ON | G44: 6
A45: MDP | B45: MDP_CRUISE_SET | C45: 42 | E45: dcsm-EF_MDP_CRUISE_SET | G45: 2
B46: MDP_ERR_DUMP | C46: 9080 | E46: dcsm-EF_MDP_ERR_DUMP | G46: 6
B47: MDP_ON_D | C47: 509 | E47: dcsm-EF_MDP_ON | G47: 11
B48: MDP_OFF_D | C48: 120 | E48: dcsm-EF_MDP_POWEROFF | G48: 3
A49: MEA | B49: MEA1_HV_OFF | C49: 182 | E49: dcsm-EF_MEA1_HV_OFF | G49: 10
B50: MEA1_HV_ON | C50: 1702 | E50: dcsm-EF_MEA1_HV_ON | G50: 27
B51: MEA1_HV_SCAN_OFF | C51: 186 | E51: dcsm-EF_MEA1_HV_SCAN_OFF | G51: 12
B52: MEA1_OFF | C52: 160 | E52: dcsm-EF_MEA1_OFF | G52: 4
B53: MEA1_ON_SETUP_SW | C53: 292 | E53: dcsm-EF_MEA1_ON_SW | G53: 12
B54: MEA_HV_OFF | C54: 202 | E54: dcsm-EF_MEA_HV_OFF | G54: 20
B55: MEA_HV_ON | C55: 1756 | E55: dcsm-EF_MEA_HV_ON | G55: 54
B56: MEA_HV_ON_MOD | C56: 126 | E56: dcsm-EF_MEA_HV_ON_modified | G56: 6
B57: MEA_HV_SCAN_OFF | C57: 210 | E57: dcsm-EF_MEA_HV_SCAN_OFF | G57: 24
B58: MEA_OFF | C58: 164 | E58: dcsm-EF_MEA_OFF | G58: 6
B59: MEA_ON_SETUP_MAG | C59: 386 | E59: dcsm-EF_MEA_ON_MAG | G59: 21
B60: MEA_ON_SETUP_SW | C60: 386 | E60: dcsm-EF_MEA_ON_SW | G60: 21
A61: MGF | B61: MGF_OFF | C61: 8 | E61: dcsm-EF_MGF_OFF | G61: 1
B62: MGF_ON_SETUP | C62: 14 | E62: dcsm-EF_MGF_ON | G62: 3
A63: MIA | B63: MIA_HV_OFF | C63: 60 | E63: dcsm-EF_MIA_HV_OFF | G63: 1
B64: MIA_HV_ON | C64: 240 | E64: dcsm-EF_MIA_HV_ON | G64: 6
B65: MIA_HV_ON_MAG | C65: 142 | E65: dcsm-EF_MIA_HV_ON_MAG | G65: 4
B66: MIA_HV_ON_MAG_RC | C66: 262 | E66: dcsm-EF_MIA_HV_ON_MAG_RC | G66: 7
B67: MIA_HV_ON_RC | C67: 280 | E67: dcsm-EF_MIA_HV_ON_RC | G67: 7
B68: MIA_HV_ON_SW | C68: 102 | E68: dcsm-EF_MIA_HV_ON_SW | G68: 3
B69: MIA_HV_ON_SW_RC | C69: 262 | E69: dcsm-EF_MIA_HV_ON_SW_RC | G69: 7
B70: MIA_OFF | C70: 160 | E70: dcsm-EF_MIA_OFF | G70: 4
B71: MIA_ON_SETUP | C71: 382 | E71: dcsm-EF_MIA_ON | G71: 6
B72: MIA_ON_C | C72: 0 | E72: dcsm-EF_MIA_ON_C | G72: 0
A73: MSA | B73: MSA_HV_OFF | C73: 714 | E73: dcsm-EF_MSA_HV_OFF | G73: 24
B74: MSA_HV_OFF_VFB | C74: 774 | E74: dcsm-EF_MSA_HV_OFF_VFB | G74: 25
B75: MSA_HV_ON_1 | C75: 4692 | E75: dcsm-EF_MSA_HV_ON_1 | G75: 108
B76: MSA_HV_ON_1_MFB_SF | C76: 1573 | E76: dcsm-EF_MSA_HV_ON_1_MFB_Safe | G76: 108
B77: MSA_HV_ON_VFB1 | C77: 2882 | E77: dcsm-EF_MSA_HV_ON_1_VFB | G77: 108
B78: MSA_HV_ON_2 | C78: 6262 | E78: dcsm-EF_MSA_HV_ON_2 | G78: 124
B79: MSA_HV_ON_2_MFB_SF | C79: 1860 | E79: dcsm-EF_MSA_HV_ON_2_MFB_Safe | G79: 124
B80: MSA_HV_ON_VFB2 | C80: 3262 | E80: dcsm-EF_MSA_HV_ON_2_VFB | G80: 124
B81: MSA_OFF | C81: 380 | E81: dcsm-EF_MSA_OFF | G81: 25
B82: MSA_ON_SETUP | C82: 1092 | E82: dcsm-EF_MSA_ON | G82: 15
B83: MSA_ON_SETUP_C | C83: 1092 | E83: dcsm-EF_MSA_ON_C | G83: 15
B84: MSA_SOFT_RESET | C84: 120 | E84: dcsm-EF_MSA_SOFT_RESET | G84: 3
B85: MSA_SOFT_RESET2 | C85: 100 | E85: dcsm-EF_MSA_SOFT_RESET2 | G85: 5
A86: PME | B86: PME_OFF | C86: 40 | E86: dcsm-EF_PME_OFF | G86: 1
B87: PME_ON | C87: 80 | E87: dcsm-EF_PME_ON | G87: 2
A88: PWI | B88: PWI_OFF | C88: 80 | E88: dcsm-EF_PWI_OFF | G88: 2
B89: PWI_ON | C89: 828 | E89: dcsm-EF_PWI_ON | G89: 26
B90: PWI_ON_SETUP | C90: 868 | E90: dcsm-EF_PWI_ON_CRUISE | G90: 27
A91: MACRO | B91: MC_ENA | C91: 246 | E91: dcsm-MC_ENA_MDP | G91: 21
A92: MDP | B92: MDP_AP9_DUMP | C92: 1880 | E92: dcsm-MDP_AP09_LOG_DUMP | G92: 4
B93: MDP_ERR_LOG_DUMP | C93: 9080 | E93: dcsm-MDP_ERR_LOG_DUMP | G93: 6
B94: MDP_HK_REPEINT_6 | C94: 42 | E94: dcsm-MDP_HK_REPINT_6 | G94: 2
A95: MEA | B95: MEA2_MEM_DMP | C95: 2550 | E95: dcsm-MEA2_MEM_DMP | G95: 36
A96: MSASI | B96: MSASI_DARK_1 | C96: 768 | E96: dcsm-MSASI_dark_CO_sequence1 | G96: 11
B97: MSASI_DARK_2 | C97: 19498 | E97: dcsm-MSASI_dark_CO_sequence2 | G97: 55
A98: MSA | B98: MSA_TABLE_UPLOAD | C98: 0 | E98: dcsm-MSA_TABLE_UPLOAD | G98: 0
A99: TCFS | B99: TCSF_MSASI | C99: 345 | E99: dcsm-tcfs_tbl1_msasi_set | G99: 13
A100: WAIT | B100: WAIT3600 | C100: 3600
B101: WAIT3500 | C101: 3500
B102: WAIT19357 | C102: 19357
B103: WAIT1800 | C103: 1800 | E103: WAIT_SEC 1800
B104: WAIT10800 | C104: 10800 | E104: WAIT_SEC 10800
B105: WAIT600 | C105: 600 | E105: WAIT_SEC 600

Sheet WOL
C1: START TIME | D1: 2022-03-11T10:45:00
C2: END TIME | D2: 2022-03-15T06:00:00
B3: ID | D3: date time excel | E3: duration(s)
B4: WOLS | C4: WOL#1 | D4: 2022-03-11T22:19:16 | E4: 1200
B5: WOLS | C5: WOL#2 | D5: 2022-03-12T21:14:50 | E5: 1200
B6: WOLS | C6: WOL#3 | D6: 2022-03-13T20:57:06 | E6: 1200
B7: WOLS | C7: WOL#4 | D7: 2022-03-14T21:05:18 | E7: 1200

Sheet obs_sequence
A1: START | C1: =WOL!D1 -> 2022-03-11T10:45:00 | D1: OBCP START | E1: =C1-12*60*60/3600/24 -> 2022-03-10T22:45:00 | L1: 5days
A2: END | C2: =WOL!D2 -> 2022-03-15T06:00:00 | D2: OBCP END | E2: =C2+(240+120+300)/3600/24 -> 2022-03-15T06:11:00 | F2: CMD END | G2: =C2-100/3600/24 -> 2022-03-15T05:58:20
A4: Relative time (h) | C4: Absolute time (UTC) | K4: main2-CROUSE_OBS12_2_XOR_001_M63.cps | L4: =+SUM(L6:L83) -> 
A5: Start | B5: End | C5: Start | D5: End | E5: Event | F5: Activity | G5: Procedure | H5: Duration (sec) | L5: cmd count | M5: XOR Time | N5: cmd count
C6: 2022-03-11T10:45:00 | D6: =C6+H6/3600/24 -> 2022-03-11T10:49:52 | F6: SI Power ON | G6: MEA1_ON_SETUP_SW | H6: =VLOOKUP(G6,List!B:C,2,0) -> 292 | K6: =VLOOKUP(G6,List!B:E,4,0) -> dcsm-EF_MEA1_ON_SW | L6: =VLOOKUP(G6,List!B:G,6,0) -> 12 | M6: =C6-317/3600/24 -> 2022-03-11T10:39:43 | N6: =+"0000 CALL "&K6&" -Run" -> 0000 CALL dcsm-EF_MEA1_ON_SW -Run
C7: =D6 -> 2022-03-11T10:49:52 | D7: =C7+H7/3600/24 -> 2022-03-11T11:10:22 | G7: HEP_ON_SETUP | H7: =VLOOKUP(G7,List!B:C,2,0) -> 1230 | K7: =VLOOKUP(G7,List!B:E,4,0) -> dcsm-EF_HEP_ON_START_for_TL | L7: =VLOOKUP(G7,List!B:G,6,0) -> 34 | M7: 2022-03-11T10:44:35 | N7: 0000 CALL dcsm-EF_HEP_ON_START_for_TL -Run
C8: =D7 -> 2022-03-11T11:10:22 | D8: =C8+H8/3600/24 -> 2022-03-11T11:11:42 | G8: PME_ON | H8: =VLOOKUP(G8,List!B:C,2,0) -> 80 | K8: =VLOOKUP(G8,List!B:E,4,0) -> dcsm-EF_PME_ON | L8: =VLOOKUP(G8,List!B:G,6,0) -> 2 | M8: 2022-03-11T11:05:05 | N8: 0000 CALL dcsm-EF_PME_ON -Run
C9: 2022-03-11T11:11:42 | D9: 2022-03-11T11:11:56 | G9: MGF_ON_SETUP | H9: =VLOOKUP(G9,List!B:C,2,0) -> 14 | K9: =VLOOKUP(G9,List!B:E,4,0) -> dcsm-EF_MGF_ON | L9: =VLOOKUP(G9,List!B:G,6,0) -> 3 | M9: 2022-03-11T11:06:25 | N9: 0000 CALL dcsm-EF_MGF_ON -Run
C10: 2022-03-11T11:11:56 | D10: 2022-03-11T11:18:18 | G10: MIA_ON_SETUP | H10: =VLOOKUP(G10,List!B:C,2,0) -> 382 | K10: =VLOOKUP(G10,List!B:E,4,0) -> dcsm-EF_MIA_ON | L10: =VLOOKUP(G10,List!B:G,6,0) -> 6 | M10: 2022-03-11T11:06:39 | N10: 0000 CALL dcsm-EF_MIA_ON -Run
C11: =D10 -> 2022-03-11T11:18:18 | D11: 2022-03-11T11:22:48 | F11: SI HV ON | G11: HEP_HV_ON | H11: =VLOOKUP(G11,List!B:C,2,0) -> 270 | K11: =VLOOKUP(G11,List!B:E,4,0) -> dcsm-EF_HEPE_HV_ON_OBS_START | L11: =VLOOKUP(G11,List!B:G,6,0) -> 6 | M11: 2022-03-11T11:13:01 | N11: =+"0000 CALL "&K11&" -Run" -> 0000 CALL dcsm-EF_HEPE_HV_ON_OBS_START -Run
C12: =D11 -> 2022-03-11T11:22:48 | D12: 2022-03-11T11:27:10 | G12: MIA_HV_ON_SW_RC | H12: =VLOOKUP(G12,List!B:C,2,0) -> 262 | K12: =VLOOKUP(G12,List!B:E,4,0) -> dcsm-EF_MIA_HV_ON_SW_RC | L12: =VLOOKUP(G12,List!B:G,6,0) -> 7 | M12: 2022-03-11T11:17:31 | N12: =+"0000 CALL "&K12&" -Run" -> 0000 CALL dcsm-EF_MIA_HV_ON_SW_RC -Run
C13: 2022-03-11T11:27:10 | D13: 2022-03-11T11:55:32 | G13: MEA1_HV_ON | H13: =VLOOKUP(G13,List!B:C,2,0) -> 1702 | K13: =VLOOKUP(G13,List!B:E,4,0) -> dcsm-EF_MEA1_HV_ON | L13: =VLOOKUP(G13,List!B:G,6,0) -> 27 | M13: 2022-03-11T11:21:53 | N13: 0000 CALL dcsm-EF_MEA1_HV_ON -Run
C14: 2022-03-11T11:55:32 | D14: 2022-03-11T12:21:45 | G14: MSA_HV_ON_1_MFB_SF | H14: =VLOOKUP(G14,List!B:C,2,0) -> 1573 | K14: =VLOOKUP(G14,List!B:E,4,0) -> dcsm-EF_MSA_HV_ON_1_MFB_Safe | L14: =VLOOKUP(G14,List!B:G,6,0) -> 108 | M14: 2022-03-11T11:50:15 | N14: 0000 CALL dcsm-EF_MSA_HV_ON_1_MFB_Safe -Run
C15: 2022-03-11T12:21:45 | D15: 2022-03-11T12:52:45 | G15: MSA_HV_ON_2_MFB_SF | H15: =VLOOKUP(G15,List!B:C,2,0) -> 1860 | K15: =VLOOKUP(G15,List!B:E,4,0) -> dcsm-EF_MSA_HV_ON_2_MFB_Safe | L15: =VLOOKUP(G15,List!B:G,6,0) -> 124 | M15: 2022-03-11T12:16:28 | N15: 0000 CALL dcsm-EF_MSA_HV_ON_2_MFB_Safe -Run
C16: 2022-03-11T12:52:45 | D16: 2022-03-11T12:53:27 | F16: TLM mode change (MODE_5) | G16: TLM_MODE_5 | H16: =VLOOKUP(G16,List!B:C,2,0) -> 42 | K16: =VLOOKUP(G16,List!B:E,4,0) -> dcsm-EF_BUS_TLM_MODE_5 | L16: =VLOOKUP(G16,List!B:G,6,0) -> 2 | M16: 2022-03-11T12:47:28 | N16: 0000 CALL dcsm-EF_BUS_TLM_MODE_5 -Run
C17: 2022-03-11T12:53:27 | D17: =C18 -> 2022-03-11T21:58:28 | E17: Observation A | H17: =(D17-C17)*3600*24 -> 32701 | I17: =H17/3600 -> 9.083611111 | L17: 0 | M17: 2022-03-11T12:48:10 | N17: ="0000 WAIT_SEC "&TEXT(H17,"#0") -> 0000 WAIT_SEC 32701
C18: =D18-H18/3600/24 -> 2022-03-11T21:58:28 | D18: =C19 -> 2022-03-11T21:59:10 | F18: TLM mode change (MODE_10) | G18: TLM_MODE_10 | H18: =VLOOKUP(G18,List!B:C,2,0) -> 42 | K18: =VLOOKUP(G18,List!B:E,4,0) -> dcsm-EF_BUS_TLM_MODE_10 | L18: =VLOOKUP(G18,List!B:G,6,0) -> 2 | M18: 2022-03-11T21:53:11 | N18: =+"0000 CALL "&K18&" -Run" -> 0000 CALL dcsm-EF_BUS_TLM_MODE_10 -Run
C19: =D19-H19/3600/24 -> 2022-03-11T21:59:10 | D19: =C20 -> 2022-03-11T22:12:04 | F19: SI HV OFF | G19: MSA_HV_OFF_VFB | H19: =VLOOKUP(G19,List!B:C,2,0) -> 774 | K19: =VLOOKUP(G19,List!B:E,4,0) -> dcsm-EF_MSA_HV_OFF_VFB | L19: =VLOOKUP(G19,List!B:G,6,0) -> 25 | M19: 2022-03-11T21:53:53 | N19: 0000 CALL dcsm-EF_MSA_HV_OFF_VFB -Run
C20: 2022-03-11T22:12:04 | D20: 2022-03-11T22:15:06 | G20: MEA1_HV_OFF | H20: =VLOOKUP(G20,List!B:C,2,0) -> 182 | K20: =VLOOKUP(G20,List!B:E,4,0) -> dcsm-EF_MEA1_HV_OFF | L20: =VLOOKUP(G20,List!B:G,6,0) -> 10 | M20: 2022-03-11T22:06:47 | N20: 0000 CALL dcsm-EF_MEA1_HV_OFF -Run
C21: =D21-H21/3600/24 -> 2022-03-11T22:15:06 | D21: 2022-03-11T22:16:06 | G21: MIA_HV_OFF | H21: =VLOOKUP(G21,List!B:C,2,0) -> 60 | K21: =VLOOKUP(G21,List!B:E,4,0) -> dcsm-EF_MIA_HV_OFF | L21: =VLOOKUP(G21,List!B:G,6,0) -> 1 | M21: 2022-03-11T22:09:49 | N21: 0000 CALL dcsm-EF_MIA_HV_OFF -Run
C22: =D22-H22/3600/24 -> 2022-03-11T22:16:06 | D22: 2022-03-11T22:19:16 | G22: HEP_HV_OFF | H22: =VLOOKUP(G22,List!B:C,2,0) -> 190 | K22: =VLOOKUP(G22,List!B:E,4,0) -> dcsm-EF_HEPE_HV_OFF_OBS_OFF | L22: =VLOOKUP(G22,List!B:G,6,0) -> 5 | M22: 2022-03-11T22:10:49 | N22: 0000 CALL dcsm-EF_HEPE_HV_OFF_OBS_OFF -Run
C23: 2022-03-11T22:19:16 | D23: =C23+H23/3600/24 -> 2022-03-11T22:39:16 | E23: WOL#1 | G23: =(C24-D22)*24*3600 -> 1800 | H23: 1200 | L23: 0 | M23: 2022-03-11T22:13:59 | N23: ="0000 WAIT_SEC "&TEXT(G23,"#0") -> 0000 WAIT_SEC 1800
C24: =D23+10/60/24 -> 2022-03-11T22:49:16 | D24: =C24+H24/3600/24 -> 2022-03-11T22:53:46 | F24: SI HV ON | G24: HEP_HV_ON | H24: =VLOOKUP(G24,List!B:C,2,0) -> 270 | K24: =VLOOKUP(G24,List!B:E,4,0) -> dcsm-EF_HEPE_HV_ON_OBS_START | L24: =VLOOKUP(G24,List!B:G,6,0) -> 6 | M24: 2022-03-11T22:43:59 | N24: =+"0000 CALL "&K24&" -Run" -> 0000 CALL dcsm-EF_HEPE_HV_ON_OBS_START -Run
C25: =D24 -> 2022-03-11T22:53:46 | D25: 2022-03-11T22:58:08 | G25: MIA_HV_ON_SW_RC | H25: =VLOOKUP(G25,List!B:C,2,0) -> 262 | K25: =VLOOKUP(G25,List!B:E,4,0) -> dcsm-EF_MIA_HV_ON_SW_RC | L25: =VLOOKUP(G25,List!B:G,6,0) -> 7 | M25: 2022-03-11T22:48:29 | N25: =+"0000 CALL "&K25&" -Run" -> 0000 CALL dcsm-EF_MIA_HV_ON_SW_RC -Run
C26: 2022-03-11T22:58:08 | D26: 2022-03-11T23:26:30 | G26: MEA1_HV_ON | H26: =VLOOKUP(G26,List!B:C,2,0) -> 1702 | K26: =VLOOKUP(G26,List!B:E,4,0) -> dcsm-EF_MEA1_HV_ON | L26: =VLOOKUP(G26,List!B:G,6,0) -> 27 | M26: 2022-03-11T22:52:51 | N26: 0000 CALL dcsm-EF_MEA1_HV_ON -Run
C27: 2022-03-11T23:26:30 | D27: 2022-03-11T23:52:43 | G27: MSA_HV_ON_1_MFB_SF | H27: =VLOOKUP(G27,List!B:C,2,0) -> 1573 | K27: =VLOOKUP(G27,List!B:E,4,0) -> dcsm-EF_MSA_HV_ON_1_MFB_Safe | L27: =VLOOKUP(G27,List!B:G,6,0) -> 108 | M27: 2022-03-11T23:21:13 | N27: 0000 CALL dcsm-EF_MSA_HV_ON_1_MFB_Safe -Run
C28: 2022-03-11T23:52:43 | D28: 2022-03-12T00:23:43 | G28: MSA_HV_ON_2_MFB_SF | H28: =VLOOKUP(G28,List!B:C,2,0) -> 1860 | K28: =VLOOKUP(G28,List!B:E,4,0) -> dcsm-EF_MSA_HV_ON_2_MFB_Safe | L28: =VLOOKUP(G28,List!B:G,6,0) -> 124 | M28: 2022-03-11T23:47:26 | N28: 0000 CALL dcsm-EF_MSA_HV_ON_2_MFB_Safe -Run
C29: 2022-03-12T00:23:43 | D29: 2022-03-12T00:24:25 | F29: TLM mode change (MODE_5) | G29: TLM_MODE_5 | H29: =VLOOKUP(G29,List!B:C,2,0) -> 42 | K29: =VLOOKUP(G29,List!B:E,4,0) -> dcsm-EF_BUS_TLM_MODE_5 | L29: =VLOOKUP(G29,List!B:G,6,0) -> 2 | M29: 2022-03-12T00:18:26 | N29: 0000 CALL dcsm-EF_BUS_TLM_MODE_5 -Run
C30: 2022-03-12T00:24:25 | D30: =C31 -> 2022-03-12T20:54:02 | E30: Observation B | H30: =(D30-C30)*3600*24 -> 73777 | I30: =H30/3600 -> 20.49361111 | L30: 0 | M30: 2022-03-12T00:19:08 | N30: ="0000 WAIT_SEC "&TEXT(H30,"#0") -> 0000 WAIT_SEC 73777
C31: =D31-H31/3600/24 -> 2022-03-12T20:54:02 | D31: =C32 -> 2022-03-12T20:54:44 | F31: TLM mode change (MODE_10) | G31: TLM_MODE_10 | H31: =VLOOKUP(G31,List!B:C,2,0) -> 42 | K31: =VLOOKUP(G31,List!B:E,4,0) -> dcsm-EF_BUS_TLM_MODE_10 | L31: =VLOOKUP(G31,List!B:G,6,0) -> 2 | M31: 2022-03-12T20:48:45 | N31: =+"0000 CALL "&K31&" -Run" -> 0000 CALL dcsm-EF_BUS_TLM_MODE_10 -Run
C32: =D32-H32/3600/24 -> 2022-03-12T20:54:44 | D32: =C33 -> 2022-03-12T21:07:38 | F32: SI HV OFF | G32: MSA_HV_OFF_VFB | H32: =VLOOKUP(G32,List!B:C,2,0) -> 774 | K32: =VLOOKUP(G32,List!B:E,4,0) -> dcsm-EF_MSA_HV_OFF_VFB | L32: =VLOOKUP(G32,List!B:G,6,0) -> 25 | M32: 2022-03-12T20:49:27 | N32: 0000 CALL dcsm-EF_MSA_HV_OFF_VFB -Run
C33: 2022-03-12T21:07:38 | D33: 2022-03-12T21:10:40 | G33: MEA1_HV_OFF | H33: =VLOOKUP(G33,List!B:C,2,0) -> 182 | K33: =VLOOKUP(G33,List!B:E,4,0) -> dcsm-EF_MEA1_HV_OFF | L33: =VLOOKUP(G33,List!B:G,6,0) -> 10 | M33: 2022-03-12T21:02:21 | N33: 0000 CALL dcsm-EF_MEA1_HV_OFF -Run
C34: =D34-H34/3600/24 -> 2022-03-12T21:10:40 | D34: 2022-03-12T21:11:40 | G34: MIA_HV_OFF | H34: =VLOOKUP(G34,List!B:C,2,0) -> 60 | K34: =VLOOKUP(G34,List!B:E,4,0) -> dcsm-EF_MIA_HV_OFF | L34: =VLOOKUP(G34,List!B:G,6,0) -> 1 | M34: 2022-03-12T21:05:23 | N34: 0000 CALL dcsm-EF_MIA_HV_OFF -Run
C35: =D35-H35/3600/24 -> 2022-03-12T21:11:40 | D35: 2022-03-12T21:14:50 | G35: HEP_HV_OFF | H35: =VLOOKUP(G35,List!B:C,2,0) -> 190 | K35: =VLOOKUP(G35,List!B:E,4,0) -> dcsm-EF_HEPE_HV_OFF_OBS_OFF | L35: =VLOOKUP(G35,List!B:G,6,0) -> 5 | M35: 2022-03-12T21:06:23 | N35: 0000 CALL dcsm-EF_HEPE_HV_OFF_OBS_OFF -Run
C36: 2022-03-12T21:14:50 | D36: =C36+H36/3600/24 -> 2022-03-12T21:34:50 | E36: WOL#2 | G36: =(C37-D35)*24*3600 -> 1800 | H36: 1200 | L36: 0 | M36: 2022-03-12T21:09:33 | N36: ="0000 WAIT_SEC "&TEXT(G36,"#0") -> 0000 WAIT_SEC 1800
C37: =D36+10/60/24 -> 2022-03-12T21:44:50 | D37: =C37+H37/3600/24 -> 2022-03-12T21:49:20 | F37: SI HV ON | G37: HEP_HV_ON | H37: =VLOOKUP(G37,List!B:C,2,0) -> 270 | K37: =VLOOKUP(G37,List!B:E,4,0) -> dcsm-EF_HEPE_HV_ON_OBS_START | L37: =VLOOKUP(G37,List!B:G,6,0) -> 6 | M37: 2022-03-12T21:39:33 | N37: =+"0000 CALL "&K37&" -Run" -> 0000 CALL dcsm-EF_HEPE_HV_ON_OBS_START -Run
C38: =D37 -> 2022-03-12T21:49:20 | D38: 2022-03-12T21:53:42 | G38: MIA_HV_ON_SW_RC | H38: =VLOOKUP(G38,List!B:C,2,0) -> 262 | K38: =VLOOKUP(G38,List!B:E,4,0) -> dcsm-EF_MIA_HV_ON_SW_RC | L38: =VLOOKUP(G38,List!B:G,6,0) -> 7 | M38: 2022-03-12T21:44:03 | N38: =+"0000 CALL "&K38&" -Run" -> 0000 CALL dcsm-EF_MIA_HV_ON_SW_RC -Run
C39: 2022-03-12T21:53:42 | D39: 2022-03-12T22:22:04 | G39: MEA1_HV_ON | H39: =VLOOKUP(G39,List!B:C,2,0) -> 1702 | K39: =VLOOKUP(G39,List!B:E,4,0) -> dcsm-EF_MEA1_HV_ON | L39: =VLOOKUP(G39,List!B:G,6,0) -> 27 | M39: 2022-03-12T21:48:25 | N39: 0000 CALL dcsm-EF_MEA1_HV_ON -Run
C40: 2022-03-12T22:22:04 | D40: 2022-03-12T22:48:17 | G40: MSA_HV_ON_1_MFB_SF | H40: =VLOOKUP(G40,List!B:C,2,0) -> 1573 | K40: =VLOOKUP(G40,List!B:E,4,0) -> dcsm-EF_MSA_HV_ON_1_MFB_Safe | L40: =VLOOKUP(G40,List!B:G,6,0) -> 108 | M40: 2022-03-12T22:16:47 | N40: 0000 CALL dcsm-EF_MSA_HV_ON_1_MFB_Safe -Run
C41: 2022-03-12T22:48:17 | D41: 2022-03-12T23:19:17 | G41: MSA_HV_ON_2_MFB_SF | H41: =VLOOKUP(G41,List!B:C,2,0) -> 1860 | K41: =VLOOKUP(G41,List!B:E,4,0) -> dcsm-EF_MSA_HV_ON_2_MFB_Safe | L41: =VLOOKUP(G41,List!B:G,6,0) -> 124 | M41: 2022-03-12T22:43:00 | N41: 0000 CALL dcsm-EF_MSA_HV_ON_2_MFB_Safe -Run
C42: 2022-03-12T23:19:17 | D42: 2022-03-12T23:19:59 | F42: TLM mode change (MODE_5) | G42: TLM_MODE_5 | H42: =VLOOKUP(G42,List!B:C,2,0) -> 42 | K42: =VLOOKUP(G42,List!B:E,4,0) -> dcsm-EF_BUS_TLM_MODE_5 | L42: =VLOOKUP(G42,List!B:G,6,0) -> 2 | M42: 2022-03-12T23:14:00 | N42: 0000 CALL dcsm-EF_BUS_TLM_MODE_5 -Run
C43: 2022-03-12T23:19:59 | D43: =C44 -> 2022-03-13T20:36:18 | E43: Observation C | H43: =(D43-C43)*3600*24 -> 76579 | I43: =H43/3600 -> 21.27194444 | L43: 0 | M43: 2022-03-12T23:14:42 | N43: ="0000 WAIT_SEC "&TEXT(H43,"#0") -> 0000 WAIT_SEC 76579
C44: =D44-H44/3600/24 -> 2022-03-13T20:36:18 | D44: =C45 -> 2022-03-13T20:37:00 | F44: TLM mode change (MODE_10) | G44: TLM_MODE_10 | H44: =VLOOKUP(G44,List!B:C,2,0) -> 42 | K44: =VLOOKUP(G44,List!B:E,4,0) -> dcsm-EF_BUS_TLM_MODE_10 | L44: =VLOOKUP(G44,List!B:G,6,0) -> 2 | M44: 2022-03-13T20:31:01 | N44: =+"0000 CALL "&K44&" -Run" -> 0000 CALL dcsm-EF_BUS_TLM_MODE_10 -Run
C45: =D45-H45/3600/24 -> 2022-03-13T20:37:00 | D45: =C46 -> 2022-03-13T20:49:54 | F45: SI HV OFF | G45: MSA_HV_OFF_VFB | H45: =VLOOKUP(G45,List!B:C,2,0) -> 774 | K45: =VLOOKUP(G45,List!B:E,4,0) -> dcsm-EF_MSA_HV_OFF_VFB | L45: =VLOOKUP(G45,List!B:G,6,0) -> 25 | M45: 2022-03-13T20:31:43 | N45: 0000 CALL dcsm-EF_MSA_HV_OFF_VFB -Run
C46: 2022-03-13T20:49:54 | D46: 2022-03-13T20:52:56 | G46: MEA1_HV_OFF | H46: =VLOOKUP(G46,List!B:C,2,0) -> 182 | K46: =VLOOKUP(G46,List!B:E,4,0) -> dcsm-EF_MEA1_HV_OFF | L46: =VLOOKUP(G46,List!B:G,6,0) -> 10 | M46: 2022-03-13T20:44:37 | N46: 0000 CALL dcsm-EF_MEA1_HV_OFF -Run
C47: =D47-H47/3600/24 -> 2022-03-13T20:52:56 | D47: 2022-03-13T20:53:56 | G47: MIA_HV_OFF | H47: =VLOOKUP(G47,List!B:C,2,0) -> 60 | K47: =VLOOKUP(G47,List!B:E,4,0) -> dcsm-EF_MIA_HV_OFF | L47: =VLOOKUP(G47,List!B:G,6,0) -> 1 | M47: 2022-03-13T20:47:39 | N47: 0000 CALL dcsm-EF_MIA_HV_OFF -Run
C48: =D48-H48/3600/24 -> 2022-03-13T20:53:56 | D48: 2022-03-13T20:57:06 | G48: HEP_HV_OFF | H48: =VLOOKUP(G48,List!B:C,2,0) -> 190 | K48: =VLOOKUP(G48,List!B:E,4,0) -> dcsm-EF_HEPE_HV_OFF_OBS_OFF | L48: =VLOOKUP(G48,List!B:G,6,0) -> 5 | M48: 2022-03-13T20:48:39 | N48: 0000 CALL dcsm-EF_HEPE_HV_OFF_OBS_OFF -Run
C49: 2022-03-13T20:57:06 | D49: =C49+H49/3600/24 -> 2022-03-13T21:17:06 | E49: WOL#3 | G49: =(C50-D48)*24*3600 -> 1800 | H49: 1200 | L49: 0 | M49: 2022-03-13T20:51:49 | N49: ="0000 WAIT_SEC "&TEXT(G49,"#0") -> 0000 WAIT_SEC 1800
C50: =D49+10/60/24 -> 2022-03-13T21:27:06 | D50: =C50+H50/3600/24 -> 2022-03-13T21:31:36 | F50: SI HV ON | G50: HEP_HV_ON | H50: =VLOOKUP(G50,List!B:C,2,0) -> 270 | K50: =VLOOKUP(G50,List!B:E,4,0) -> dcsm-EF_HEPE_HV_ON_OBS_START | L50: =VLOOKUP(G50,List!B:G,6,0) -> 6 | M50: 2022-03-13T21:21:49 | N50: =+"0000 CALL "&K50&" -Run" -> 0000 CALL dcsm-EF_HEPE_HV_ON_OBS_START -Run
C51: =D50 -> 2022-03-13T21:31:36 | D51: 2022-03-13T21:35:58 | G51: MIA_HV_ON_SW_RC | H51: =VLOOKUP(G51,List!B:C,2,0) -> 262 | K51: =VLOOKUP(G51,List!B:E,4,0) -> dcsm-EF_MIA_HV_ON_SW_RC | L51: =VLOOKUP(G51,List!B:G,6,0) -> 7 | M51: 2022-03-13T21:26:19 | N51: =+"0000 CALL "&K51&" -Run" -> 0000 CALL dcsm-EF_MIA_HV_ON_SW_RC -Run
C52: 2022-03-13T21:35:58 | D52: 2022-03-13T22:04:20 | G52: MEA1_HV_ON | H52: =VLOOKUP(G52,List!B:C,2,0) -> 1702 | K52: =VLOOKUP(G52,List!B:E,4,0) -> dcsm-EF_MEA1_HV_ON | L52: =VLOOKUP(G52,List!B:G,6,0) -> 27 | M52: 2022-03-13T21:30:41 | N52: 0000 CALL dcsm-EF_MEA1_HV_ON -Run
C53: 2022-03-13T22:04:20 | D53: 2022-03-13T22:30:33 | G53: MSA_HV_ON_1_MFB_SF | H53: =VLOOKUP(G53,List!B:C,2,0) -> 1573 | K53: =VLOOKUP(G53,List!B:E,4,0) -> dcsm-EF_MSA_HV_ON_1_MFB_Safe | L53: =VLOOKUP(G53,List!B:G,6,0) -> 108 | M53: 2022-03-13T21:59:03 | N53: 0000 CALL dcsm-EF_MSA_HV_ON_1_MFB_Safe -Run
C54: 2022-03-13T22:30:33 | D54: 2022-03-13T23:01:33 | G54: MSA_HV_ON_2_MFB_SF | H54: =VLOOKUP(G54,List!B:C,2,0) -> 1860 | K54: =VLOOKUP(G54,List!B:E,4,0) -> dcsm-EF_MSA_HV_ON_2_MFB_Safe | L54: =VLOOKUP(G54,List!B:G,6,0) -> 124 | M54: 2022-03-13T22:25:16 | N54: 0000 CALL dcsm-EF_MSA_HV_ON_2_MFB_Safe -Run
C55: 2022-03-13T23:01:33 | D55: 2022-03-13T23:02:15 | F55: TLM mode change (MODE_5) | G55: TLM_MODE_5 | H55: =VLOOKUP(G55,List!B:C,2,0) -> 42 | K55: =VLOOKUP(G55,List!B:E,4,0) -> dcsm-EF_BUS_TLM_MODE_5 | L55: =VLOOKUP(G55,List!B:G,6,0) -> 2 | M55: 2022-03-13T22:56:16 | N55: 0000 CALL dcsm-EF_BUS_TLM_MODE_5 -Run
C56: 2022-03-13T23:02:15 | D56: =C57 -> 2022-03-14T20:44:30 | E56: Observation D | H56: =(D56-C56)*3600*24 -> 78135 | I56: =H56/3600 -> 21.70416667 | L56: 0 | M56: 2022-03-13T22:56:58 | N56: ="0000 WAIT_SEC "&TEXT(H56,"#0") -> 0000 WAIT_SEC 78135
C57: =D57-H57/3600/24 -> 2022-03-14T20:44:30 | D57: =C58 -> 2022-03-14T20:45:12 | F57: TLM mode change (MODE_10) | G57: TLM_MODE_10 | H57: =VLOOKUP(G57,List!B:C,2,0) -> 42 | K57: =VLOOKUP(G57,List!B:E,4,0) -> dcsm-EF_BUS_TLM_MODE_10 | L57: =VLOOKUP(G57,List!B:G,6,0) -> 2 | M57: 2022-03-14T20:39:13 | N57: =+"0000 CALL "&K57&" -Run" -> 0000 CALL dcsm-EF_BUS_TLM_MODE_10 -Run
C58: =D58-H58/3600/24 -> 2022-03-14T20:45:12 | D58: =C59 -> 2022-03-14T20:58:06 | F58: SI HV OFF | G58: MSA_HV_OFF_VFB | H58: =VLOOKUP(G58,List!B:C,2,0) -> 774 | K58: =VLOOKUP(G58,List!B:E,4,0) -> dcsm-EF_MSA_HV_OFF_VFB | L58: =VLOOKUP(G58,List!B:G,6,0) -> 25 | M58: 2022-03-14T20:39:55 | N58: 0000 CALL dcsm-EF_MSA_HV_OFF_VFB -Run
C59: 2022-03-14T20:58:06 | D59: 2022-03-14T21:01:08 | G59: MEA1_HV_OFF | H59: =VLOOKUP(G59,List!B:C,2,0) -> 182 | K59: =VLOOKUP(G59,List!B:E,4,0) -> dcsm-EF_MEA1_HV_OFF | L59: =VLOOKUP(G59,List!B:G,6,0) -> 10 | M59: 2022-03-14T20:52:49 | N59: 0000 CALL dcsm-EF_MEA1_HV_OFF -Run
C60: =D60-H60/3600/24 -> 2022-03-14T21:01:08 | D60: 2022-03-14T21:02:08 | G60: MIA_HV_OFF | H60: =VLOOKUP(G60,List!B:C,2,0) -> 60 | K60: =VLOOKUP(G60,List!B:E,4,0) -> dcsm-EF_MIA_HV_OFF | L60: =VLOOKUP(G60,List!B:G,6,0) -> 1 | M60: 2022-03-14T20:55:51 | N60: 0000 CALL dcsm-EF_MIA_HV_OFF -Run
C61: =D61-H61/3600/24 -> 2022-03-14T21:02:08 | D61: 2022-03-14T21:05:18 | G61: HEP_HV_OFF | H61: =VLOOKUP(G61,List!B:C,2,0) -> 190 | K61: =VLOOKUP(G61,List!B:E,4,0) -> dcsm-EF_HEPE_HV_OFF_OBS_OFF | L61: =VLOOKUP(G61,List!B:G,6,0) -> 5 | M61: 2022-03-14T20:56:51 | N61: 0000 CALL dcsm-EF_HEPE_HV_OFF_OBS_OFF -Run
C62: 2022-03-14T21:05:18 | D62: =C62+H62/3600/24 -> 2022-03-14T21:25:18 | E62: WOL#4 | G62: =(C63-D61)*24*3600 -> 1800 | H62: 1200 | L62: 0 | M62: 2022-03-14T21:00:01 | N62: ="0000 WAIT_SEC "&TEXT(G62,"#0") -> 0000 WAIT_SEC 1800
C63: =D62+10/60/24 -> 2022-03-14T21:35:18 | D63: =C63+H63/3600/24 -> 2022-03-14T21:39:48 | F63: SI HV ON | G63: HEP_HV_ON | H63: =VLOOKUP(G63,List!B:C,2,0) -> 270 | K63: =VLOOKUP(G63,List!B:E,4,0) -> dcsm-EF_HEPE_HV_ON_OBS_START | L63: =VLOOKUP(G63,List!B:G,6,0) -> 6 | M63: 2022-03-14T21:30:01 | N63: =+"0000 CALL "&K63&" -Run" -> 0000 CALL dcsm-EF_HEPE_HV_ON_OBS_START -Run
C64: =D63 -> 2022-03-14T21:39:48 | D64: 2022-03-14T21:44:10 | G64: MIA_HV_ON_SW_RC | H64: =VLOOKUP(G64,List!B:C,2,0) -> 262 | K64: =VLOOKUP(G64,List!B:E,4,0) -> dcsm-EF_MIA_HV_ON_SW_RC | L64: =VLOOKUP(G64,List!B:G,6,0) -> 7 | M64: 2022-03-14T21:34:31 | N64: =+"0000 CALL "&K64&" -Run" -> 0000 CALL dcsm-EF_MIA_HV_ON_SW_RC -Run
C65: 2022-03-14T21:44:10 | D65: 2022-03-14T22:12:32 | G65: MEA1_HV_ON | H65: =VLOOKUP(G65,List!B:C,2,0) -> 1702 | K65: =VLOOKUP(G65,List!B:E,4,0) -> dcsm-EF_MEA1_HV_ON | L65: =VLOOKUP(G65,List!B:G,6,0) -> 27 | M65: 2022-03-14T21:38:53 | N65: 0000 CALL dcsm-EF_MEA1_HV_ON -Run
C66: 2022-03-14T22:12:32 | D66: 2022-03-14T22:38:45 | G66: MSA_HV_ON_1_MFB_SF | H66: =VLOOKUP(G66,List!B:C,2,0) -> 1573 | K66: =VLOOKUP(G66,List!B:E,4,0) -> dcsm-EF_MSA_HV_ON_1_MFB_Safe | L66: =VLOOKUP(G66,List!B:G,6,0) -> 108 | M66: 2022-03-14T22:07:15 | N66: 0000 CALL dcsm-EF_MSA_HV_ON_1_MFB_Safe -Run
C67: 2022-03-14T22:38:45 | D67: 2022-03-14T23:09:45 | G67: MSA_HV_ON_2_MFB_SF | H67: =VLOOKUP(G67,List!B:C,2,0) -> 1860 | K67: =VLOOKUP(G67,List!B:E,4,0) -> dcsm-EF_MSA_HV_ON_2_MFB_Safe | L67: =VLOOKUP(G67,List!B:G,6,0) -> 124 | M67: 2022-03-14T22:33:28 | N67: 0000 CALL dcsm-EF_MSA_HV_ON_2_MFB_Safe -Run
C68: 2022-03-14T23:09:45 | D68: 2022-03-14T23:10:27 | F68: TLM mode change (MODE_5) | G68: TLM_MODE_5 | H68: =VLOOKUP(G68,List!B:C,2,0) -> 42 | K68: =VLOOKUP(G68,List!B:E,4,0) -> dcsm-EF_BUS_TLM_MODE_5 | L68: =VLOOKUP(G68,List!B:G,6,0) -> 2 | M68: 2022-03-14T23:04:28 | N68: 0000 CALL dcsm-EF_BUS_TLM_MODE_5 -Run
C69: 2022-03-14T23:10:27 | D69: =C70 -> 2022-03-15T05:23:30 | E69: Observation E | H69: =(D69-C69)*3600*24 -> 22383 | I69: =H69/3600 -> 6.2175 | L69: 0 | M69: 2022-03-14T23:05:10 | N69: ="0000 WAIT_SEC "&TEXT(H69,"#0") -> 0000 WAIT_SEC 22383
C70: =D70-H70/3600/24 -> 2022-03-15T05:23:30 | D70: =C71 -> 2022-03-15T05:24:12 | F70: TLM mode change (MODE_10) | G70: TLM_MODE_10 | H70: =VLOOKUP(G70,List!B:C,2,0) -> 42 | K70: =VLOOKUP(G70,List!B:E,4,0) -> dcsm-EF_BUS_TLM_MODE_10 | L70: =VLOOKUP(G70,List!B:G,6,0) -> 2 | M70: =C70-317/3600/24 -> 2022-03-15T05:18:13 | N70: =+"0000 CALL "&K70&" -Run" -> 0000 CALL dcsm-EF_BUS_TLM_MODE_10 -Run
C71: =D71-H71/3600/24 -> 2022-03-15T05:24:12 | D71: =C72 -> 2022-03-15T05:37:06 | F71: SI HV OFF | G71: MSA_HV_OFF_VFB | H71: =VLOOKUP(G71,List!B:C,2,0) -> 774 | K71: =VLOOKUP(G71,List!B:E,4,0) -> dcsm-EF_MSA_HV_OFF_VFB | L71: =VLOOKUP(G71,List!B:G,6,0) -> 25 | M71: 2022-03-15T05:18:55 | N71: 0000 CALL dcsm-EF_MSA_HV_OFF_VFB -Run
C72: 2022-03-15T05:37:06 | D72: 2022-03-15T05:40:12 | G72: MEA1_HV_SCAN_OFF | H72: =VLOOKUP(G72,List!B:C,2,0) -> 186 | K72: =VLOOKUP(G72,List!B:E,4,0) -> dcsm-EF_MEA1_HV_SCAN_OFF | L72: =VLOOKUP(G72,List!B:G,6,0) -> 12 | M72: 2022-03-15T05:31:49 | N72: 0000 CALL dcsm-EF_MEA1_HV_SCAN_OFF -Run
C73: =D73-H73/3600/24 -> 2022-03-15T05:40:12 | D73: 2022-03-15T05:41:12 | G73: MIA_HV_OFF | H73: =VLOOKUP(G73,List!B:C,2,0) -> 60 | K73: =VLOOKUP(G73,List!B:E,4,0) -> dcsm-EF_MIA_HV_OFF | L73: =VLOOKUP(G73,List!B:G,6,0) -> 1 | M73: 2022-03-15T05:34:55 | N73: 0000 CALL dcsm-EF_MIA_HV_OFF -Run
C74: =D74-H74/3600/24 -> 2022-03-15T05:41:12 | D74: 2022-03-15T05:44:22 | G74: HEP_HV_OFF | H74: =VLOOKUP(G74,List!B:C,2,0) -> 190 | K74: =VLOOKUP(G74,List!B:E,4,0) -> dcsm-EF_HEPE_HV_OFF_OBS_OFF | L74: =VLOOKUP(G74,List!B:G,6,0) -> 5 | M74: 2022-03-15T05:35:55 | N74: 0000 CALL dcsm-EF_HEPE_HV_OFF_OBS_OFF -Run
C75: =D75-H75/3600/24 -> 2022-03-15T05:44:22 | D75: =C76 -> 2022-03-15T05:45:32 | F75: SI Power ON | G75: HEP_OFF | H75: =VLOOKUP(G75,List!B:C,2,0) -> 70 | K75: =VLOOKUP(G75,List!B:E,4,0) -> dcsm-EF_HEPE_OFF_STOP | L75: =VLOOKUP(G75,List!B:G,6,0) -> 4 | M75: 2022-03-15T05:39:05 | N75: =+"0000 CALL "&K75&" -Run" -> 0000 CALL dcsm-EF_HEPE_OFF_STOP -Run
C76: 2022-03-15T05:45:32 | D76: =C77 -> 2022-03-15T05:48:12 | G76: MEA1_OFF | H76: =VLOOKUP(G76,List!B:C,2,0) -> 160 | K76: =VLOOKUP(G76,List!B:E,4,0) -> dcsm-EF_MEA1_OFF | L76: =VLOOKUP(G76,List!B:G,6,0) -> 4 | M76: 2022-03-15T05:40:15 | N76: =+"0000 CALL "&K76&" -Run" -> 0000 CALL dcsm-EF_MEA1_OFF -Run
C77: 2022-03-15T05:48:12 | D77: 2022-03-15T05:48:20 | G77: MGF_OFF | H77: =VLOOKUP(G77,List!B:C,2,0) -> 8 | K77: =VLOOKUP(G77,List!B:E,4,0) -> dcsm-EF_MGF_OFF | L77: =VLOOKUP(G77,List!B:G,6,0) -> 1 | M77: 2022-03-15T05:42:55 | N77: 0000 CALL dcsm-EF_MGF_OFF -Run
C78: 2022-03-15T05:48:20 | D78: 2022-03-15T05:49:00 | G78: PME_OFF | H78: =VLOOKUP(G78,List!B:C,2,0) -> 40 | K78: =VLOOKUP(G78,List!B:E,4,0) -> dcsm-EF_PME_OFF | L78: =VLOOKUP(G78,List!B:G,6,0) -> 1 | M78: 2022-03-15T05:43:03 | N78: 0000 CALL dcsm-EF_PME_OFF -Run
C79: 2022-03-15T05:49:00 | D79: =C80 -> 2022-03-15T05:51:40 | G79: MIA_OFF | H79: =VLOOKUP(G79,List!B:C,2,0) -> 160 | K79: =VLOOKUP(G79,List!B:E,4,0) -> dcsm-EF_MIA_OFF | L79: =VLOOKUP(G79,List!B:G,6,0) -> 4 | M79: 2022-03-15T05:43:43 | N79: 0000 CALL dcsm-EF_MIA_OFF -Run
C80: 2022-03-15T05:51:40 | D80: =C81 -> 2022-03-15T05:58:00 | G80: MSA_OFF | H80: =VLOOKUP(G80,List!B:C,2,0) -> 380 | K80: =VLOOKUP(G80,List!B:E,4,0) -> dcsm-EF_MSA_OFF | L80: =VLOOKUP(G80,List!B:G,6,0) -> 25 | M80: 2022-03-15T05:46:23 | N80: 0000 CALL dcsm-EF_MSA_OFF -Run
C81: 2022-03-15T05:58:00 | D81: =C82 -> 2022-03-15T06:00:00 | F81: MDP OFF | G81: MDP_OFF_D | H81: =VLOOKUP(G81,List!B:C,2,0) -> 120 | K81: =VLOOKUP(G81,List!B:E,4,0) -> dcsm-EF_MDP_POWEROFF | L81: =VLOOKUP(G81,List!B:G,6,0) -> 3 | M81: 2022-03-15T05:52:43 | N81: 0000 CALL dcsm-EF_MDP_POWEROFF -Run
C82: 2022-03-15T06:00:00 | D82: =C82+H82/3600/24 -> 2022-03-15T06:20:00 | G82: END | H82: 1200 | L82: =VLOOKUP(G82,List!B:G,6,0) ->  | M82: 2022-03-15T05:54:43
